fUST/lending_fUST_20250717
["ID","MTS","AMOUNT","RATE_DAILY","PERIOD"]
[372708038,1752745849167,-4405.08,0.00020126,2]
[372708040,1752745849176,-460.0,0.00020127,2]
[372708042,1752745849187,-460.0,0.00020127,2]
[372708044,1752745849197,-460.0,0.00020127,2]
[372708046,1752745849207,-940.09,0.00020127,2]
[372708048,1752745849217,-1239.96,0.00020127,2]
[372708050,1752745849227,-460.0,0.00020127,2]
[372708052,1752745849237,-538.65,0.00020127,2]
[372708054,1752745849247,-721.61,0.00020127,2]
[372708056,1752745849257,-694.55,0.00020127,2]
[372708058,1752745849267,-1034.96,0.00020127,2]
[372708060,1752745849277,-601.15,0.00020127,2]
[372708062,1752745849287,-500.0,0.00020153,2]
[372708064,1752745849297,-500.0,0.00020153,2]
[372708066,1752745849307,-299.4,0.00020159,3]
[372708068,1752745849317,-1865.0,0.00020172,2]
[372708070,1752745849326,-500.0,0.00020172,2]
[372708072,1752745849336,-500.0,0.00020172,2]
[372708074,1752745849346,-1693.0,0.00020172,2]
[372708076,1752745849356,-622.886029,0.00020187,2]
[372708078,1752745849366,-220.8,0.000202,2]
[372708080,1752745849376,-460.0,0.00020223,2]
[372708082,1752745849388,-460.0,0.00020223,2]
[372708084,1752745849397,-1652.73,0.00020223,2]
[372708086,1752745849408,-460.0,0.00020224,2]
[372708088,1752745849418,-581.75027151,0.00020224,2]
[372708090,1752745849427,-375.90191781,0.00020226,2]
[372708092,1752745849437,-460.0,0.00020226,2]
[372708094,1752745849447,-600.78457858,0.00020226,2]
[372708096,1752745849458,-509.47,0.00020226,2]
[372708098,1752745849468,-460.0,0.00020226,2]
[372708100,1752745849478,-460.0,0.00020226,2]
[372708102,1752745849487,-482.32,0.00020226,2]
[372708105,1752745849499,-821.31,0.00020226,2]
[372708106,1752745849509,-834.08,0.00020226,2]
[372708109,1752745849519,-977.62,0.00020226,2]
[372708111,1752745849529,-803.34,0.00020226,2]
[372708113,1752745849539,-460.0,0.00020226,2]
[372708115,1752745849549,-460.0,0.00020226,2]
[372708117,1752745849559,-564.3885609,0.00020226,2]
[372708119,1752745849569,-460.0,0.00020226,2]
[372708121,1752745849578,-1751.53,0.00020226,2]
[372708123,1752745849588,-621.7,0.00020226,2]
[372708125,1752745849597,-5369.02,0.00020226,2]
[372708127,1752745849608,-1475.65,0.00020226,2]
[372708129,1752745849617,-1601.92,0.00020226,2]
[372708131,1752745849627,-460.0,0.00020226,2]
[372708133,1752745849637,-1799.59,0.00020226,2]
[372708135,1752745849652,-658.3,0.00020226,2]
[372708137,1752745849662,-1610.03,0.00020226,2]
[372708139,1752745849671,-2915.87,0.00020226,2]
[372708141,1752745849681,-460.0,0.00020226,2]
[372708143,1752745849691,-460.0,0.00020228,2]
[372708145,1752745849701,-752.21,0.00020228,2]
[372708147,1752745849710,-460.0,0.00020228,2]
[372708149,1752745849721,-517.48178713,0.00020228,2]
[372708151,1752745849732,-3018.78404857,0.00020242,2]
[372708153,1752745849742,-360.0,0.00020313,2]
[372708155,1752745849752,-12607.95677342,0.0002032,3]
[372708157,1752745849762,-476.16111942,0.0002032,3]
[372708160,1752745849773,-15951.92248767,0.00020348,3]
[372708162,1752745849783,-214.44804168,0.0002035,3]
[372708164,1752745849792,-312.65216914,0.00020382,2]
[372708166,1752745849802,-3422.99,0.00020398,2]
[372708168,1752745849811,-4758.58,0.00020399,2]
[372708170,1752745849821,-2674.7,0.00020399,2]
[372708172,1752745849831,-761.9,0.00020399,2]
[372708174,1752745849841,-460.0,0.00020399,2]
[372708176,1752745849851,-460.0,0.00020399,2]
[372708178,1752745849861,-3502.47,0.00020399,2]
[372708180,1752745849870,-2683.97,0.00020399,2]
[372708182,1752745849881,-460.0,0.00020399,2]
[372708184,1752745849891,-1161.67,0.00020399,2]
[372708186,1752745849901,-659.41,0.00020399,2]
[372708188,1752745849911,-460.0,0.00020399,2]
[372708190,1752745849921,-460.0,0.000204,2]
[372708192,1752745849931,-759.65,0.000204,2]
[372708194,1752745849941,-678.7,0.000204,2]
[372708196,1752745849951,-460.0,0.000204,2]
[372708198,1752745849961,-460.0,0.000204,2]
[372708200,1752745849971,-4405.08,0.000204,2]
[372708202,1752745849981,-554.26,0.00020401,2]
[372708217,1752745850115,-460.0,0.00020401,2]
[372708219,1752745850125,-460.0,0.00020401,2]
[372708221,1752745850135,-940.09,0.00020401,2]
[372708223,1752745850145,-1239.96,0.00020401,2]
[372708225,1752745850154,-460.0,0.00020401,2]
[372708227,1752745850164,-538.65,0.00020401,2]
[372708229,1752745850173,-721.61,0.00020401,2]
[372708231,1752745850183,-694.55,0.00020401,2]
[372708233,1752745850192,-1034.96,0.00020401,2]
[372708235,1752745850201,-601.15,0.00020401,2]
[372708237,1752745850210,-700.0,0.00020409,2]
[372708239,1752745850221,-1865.0,0.00020446,2]
[372708241,1752745850231,-500.0,0.00020446,2]
[372708243,1752745850240,-500.0,0.00020446,2]
[372708245,1752745850249,-1693.0,0.00020446,2]
[372708247,1752745850258,-2000.0,0.00020482,2]
[372708249,1752745850268,-460.0,0.00020497,2]
[372708251,1752745850277,-460.0,0.00020497,2]
[372708253,1752745850287,-1652.73,0.00020497,2]
[372708255,1752745850297,-460.0,0.000205,2]
[372708257,1752745850307,-509.47,0.000205,2]
[372708259,1752745850317,-460.0,0.000205,2]
[372708261,1752745850327,-460.0,0.000205,2]
[372708263,1752745850337,-482.32,0.000205,2]
[372708265,1752745850346,-821.31,0.000205,2]
[372708267,1752745850355,-834.08,0.000205,2]
[372708269,1752745850365,-977.62,0.000205,2]
[372708271,1752745850374,-803.34,0.000205,2]
[372708273,1752745850386,-460.0,0.000205,2]
[372708275,1752745850396,-460.0,0.000205,2]
[372708277,1752745850406,-460.0,0.000205,2]
[372708279,1752745850416,-1751.53,0.000205,2]
[372708281,1752745850425,-621.7,0.000205,2]
[372708283,1752745850435,-5369.02,0.000205,2]
[372708285,1752745850445,-1475.65,0.000205,2]
[372708287,1752745850454,-1601.92,0.000205,2]
[372708289,1752745850464,-460.0,0.000205,2]
[372708291,1752745850473,-1799.59,0.000205,2]
[372708293,1752745850483,-658.3,0.000205,2]
[372708295,1752745850493,-1610.03,0.000205,2]
[372708297,1752745850503,-2915.87,0.000205,2]
[372708299,1752745850512,-460.0,0.000205,2]
[372708302,1752745850526,-605.4,0.00020502,2]
[372708304,1752745850536,-752.21,0.00020502,2]
[372708305,1752745850545,-396.27,0.00020502,2]
[372708307,1752745850554,-821.62587952,0.00020521,2]
[372708309,1752745850563,-1000.0,0.00020521,2]
[372708311,1752745850573,-3018.78404857,0.00020533,2]
[372708313,1752745850583,-500.0,0.00020575,2]
[372708315,1752745850592,-982.75735108,0.00020577,2]
[372708317,1752745850602,-1000.0,0.00020584,2]
[372708319,1752745850611,-540.13657752,0.00020584,2]
[372708321,1752745850621,-348.63922981,0.00020584,2]
[372708322,1752745850630,-1000.0,0.00020584,2]
[372708323,1752745850639,-1000.0,0.00020584,2]
[372708324,1752745850652,-1000.0,0.00020584,2]
[372708325,1752745850661,-15951.92248767,0.0002059,3]
[372708326,1752745850670,-3018.78404861,0.00020665,2]
[372708327,1752745850679,-3422.99,0.00020672,2]
[372708328,1752745850689,-4758.58,0.00020673,2]
[372708329,1752745850698,-2674.7,0.00020673,2]
[372708330,1752745850707,-761.9,0.00020673,2]
[372708331,1752745850716,-460.0,0.00020673,2]
[372708332,1752745850732,-3502.47,0.00020673,2]
[372708333,1752745850741,-460.0,0.00020673,2]
[372708334,1752745850751,-2683.97,0.00020673,2]
[372708335,1752745850760,-460.0,0.00020673,2]
[372708336,1752745850770,-1161.67,0.00020673,2]
[372708337,1752745850780,-659.41,0.00020673,2]
[372708338,1752745850789,-290.49874494,0.00020673,2]
[372708339,1752745850799,-460.0,0.00020674,2]
[372708340,1752745850809,-759.65,0.00020674,2]
[372708341,1752745850819,-678.7,0.00020674,2]
[372708342,1752745850829,-460.0,0.00020674,2]
[372708343,1752745850838,-460.0,0.00020674,2]
[372708344,1752745850847,-4405.08,0.00020674,2]
[372708345,1752745850857,-490.68,0.00020675,2]
[372708346,1752745850866,-460.0,0.00020675,2]
[372708347,1752745850876,-940.09,0.00020675,2]
[372708348,1752745850886,-1239.96,0.00020675,2]
[372708349,1752745850896,-342.06152639,0.00020675,2]
[372708350,1752745850906,-538.65,0.00020675,2]
[372708351,1752745850916,-721.61,0.00020675,2]
[372708352,1752745850925,-694.55,0.00020675,2]
[372708353,1752745850935,-1034.96,0.00020675,2]
[372708354,1752745850945,-601.15,0.00020675,2]
[372708355,1752745850954,-299.4,0.00020682,3]
[372708357,1752745850964,-1000.0,0.00020701,2]
[372708358,1752745850973,-1865.0,0.0002072,2]
[372708360,1752745850982,-500.0,0.0002072,2]
[372708362,1752745850991,-500.0,0.0002072,2]
[372708364,1752745851001,-1693.0,0.0002072,2]
[372708366,1752745851011,-417.010222,0.00020728,3]
[372708368,1752745851020,-546.98,0.00020771,2]
[372708370,1752745851029,-460.0,0.00020771,2]
[372708372,1752745851038,-1652.73,0.00020771,2]
[372708374,1752745851048,-460.0,0.00020774,2]
[372708376,1752745851058,-509.47,0.00020774,2]
[372708378,1752745851067,-460.0,0.00020774,2]
[372708380,1752745851077,-460.0,0.00020774,2]
[372708382,1752745851086,-482.32,0.00020774,2]
[372708384,1752745851096,-821.31,0.00020774,2]
[372708386,1752745851105,-834.08,0.00020774,2]
[372708388,1752745851115,-977.62,0.00020774,2]
[372708390,1752745851124,-803.34,0.00020774,2]
[372708392,1752745851133,-460.0,0.00020774,2]
[372708394,1752745851143,-460.0,0.00020774,2]
[372708396,1752745851152,-1751.53,0.00020774,2]
[372708398,1752745851162,-621.7,0.00020774,2]
[372708400,1752745851171,-5369.02,0.00020774,2]
[372708402,1752745851181,-1475.65,0.00020774,2]
[372708404,1752745851191,-1601.92,0.00020774,2]
[372708406,1752745851200,-460.0,0.00020774,2]
[372708408,1752745851210,-1799.59,0.00020774,2]
[372708410,1752745851220,-658.3,0.00020774,2]
[372708412,1752745851229,-1610.03,0.00020774,2]
[372708414,1752745851239,-2915.87,0.00020774,2]
[372708416,1752745851249,-460.0,0.00020774,2]
[372708418,1752745851258,-752.21,0.00020776,2]
[372708420,1752745851267,-15951.92248767,0.00020831,4]
[372708422,1752745851277,-460.0,0.00020861,2]
[372708424,1752745851286,-151.0,0.000209,4]
[372708426,1752745851295,-800.0,0.00020915,2]
[372708428,1752745851305,-3422.99,0.00020946,2]
[372708430,1752745851314,-4758.58,0.00020947,2]
[372708432,1752745851323,-2674.7,0.00020947,2]
[372708434,1752745851333,-761.9,0.00020947,2]
[372708436,1752745851342,-449.08235751,0.00020947,2]
[372708438,1752745851351,-3502.47,0.00020947,2]
[372708440,1752745851360,-460.0,0.00020947,2]
[372708442,1752745851369,-2683.97,0.00020947,2]
[372708444,1752745851380,-460.0,0.00020947,2]
[372708445,1752745851389,-1161.67,0.00020947,2]
[372708448,1752745851399,-659.41,0.00020947,2]
[372708449,1752745851408,-234.21922923,0.00020948,2]
[372708452,1752745851418,-759.65,0.00020948,2]
[372708453,1752745851427,-678.7,0.00020948,2]
[372708456,1752745851436,-460.0,0.00020948,2]
[372708457,1752745851445,-460.0,0.00020948,2]
[372708459,1752745851455,-4405.08,0.00020948,2]
[372708461,1752745851464,-460.0,0.00020949,2]
[372708463,1752745851473,-1239.96,0.00020949,2]
[372708465,1752745851482,-940.09,0.00020949,2]
[372708467,1752745851492,-538.65,0.00020949,2]
[372708469,1752745851502,-721.61,0.00020949,2]
[372708471,1752745851511,-694.55,0.00020949,2]
[372708473,1752745851521,-1034.96,0.00020949,2]
[372708475,1752745851530,-601.15,0.00020949,2]
[372708477,1752745851539,-690.87640862,0.00020959,2]
[372708479,1752745851549,-1865.0,0.00020994,2]
[372708481,1752745851558,-500.0,0.00020994,2]
[372708483,1752745851567,-500.0,0.00020994,2]
[372708485,1752745851577,-1693.0,0.00020994,2]
[372708487,1752745851587,-2500.0,0.0002103,2]
[372708489,1752745851595,-460.0,0.00021045,2]
[372708491,1752745851605,-1652.73,0.00021045,2]
[372708493,1752745851615,-460.0,0.00021048,2]
[372708495,1752745851624,-509.47,0.00021048,2]
[372708497,1752745851632,-522.35729271,0.00021048,2]
[372708499,1752745851642,-460.0,0.00021048,2]
[372708502,1752745851654,-482.32,0.00021048,2]
[372708503,1752745851662,-821.31,0.00021048,2]
[372708505,1752745851670,-834.08,0.00021048,2]
[372708507,1752745851679,-977.62,0.00021048,2]
[372708509,1752745851688,-803.34,0.00021048,2]
[372708511,1752745851696,-460.0,0.00021048,2]
[372708513,1752745851704,-460.0,0.00021048,2]
[372708515,1752745851713,-1751.53,0.00021048,2]
[372708517,1752745851722,-621.7,0.00021048,2]
[372708519,1752745851729,-5369.02,0.00021048,2]
[372708521,1752745851739,-1475.65,0.00021048,2]
[372708523,1752745851747,-1601.92,0.00021048,2]
[372708525,1752745851765,-460.0,0.00021048,2]
[372708527,1752745851774,-658.3,0.00021048,2]
[372708529,1752745851784,-1799.59,0.00021048,2]
[372708531,1752745851793,-1610.03,0.00021048,2]
[372708533,1752745851802,-2915.87,0.00021048,2]
[372708535,1752745851812,-460.0,0.00021048,2]
[372708537,1752745851821,-752.21,0.0002105,2]
[372708539,1752745851831,-1500.0,0.00021069,2]
[372708541,1752745851840,-15951.92248767,0.00021072,4]
[372708543,1752745851850,-212.0,0.00021087,2]
[372708545,1752745851859,-417.010222,0.00021107,4]
[372708547,1752745851869,-1500.0,0.00021132,2]
[372708549,1752745851878,-1500.0,0.00021132,2]
[372708551,1752745851889,-1500.0,0.00021132,2]
[372708553,1752745851898,-500.0,0.00021132,2]
[372708555,1752745851908,-682.536,0.00021158,2]
[372708557,1752745851918,-2155.0,0.00021158,2]
[372708559,1752745851927,-968.0,0.00021158,2]
[372708561,1752745851936,-5888.0,0.00021177,2]
[372708563,1752745851946,-299.4,0.00021204,4]
[372708565,1752745851955,-212.0,0.00021212,2]
[372708567,1752745851964,-306.0,0.00021212,2]
[372708569,1752745851974,-500.0,0.00021212,2]
[372708571,1752745851983,-3422.99,0.0002122,2]
[372708573,1752745851992,-4758.58,0.00021221,2]
[372708575,1752745852002,-2674.7,0.00021221,2]
[372708577,1752745852011,-761.9,0.00021221,2]
[372708579,1752745852021,-3502.47,0.00021221,2]
[372708581,1752745852030,-497.52924152,0.00021221,2]
[372708583,1752745852042,-2683.97,0.00021221,2]
[372708585,1752745852054,-460.0,0.00021221,2]
[372708587,1752745852064,-1161.67,0.00021221,2]
[372708589,1752745852073,-659.41,0.00021221,2]
[372708591,1752745852083,-759.65,0.00021222,2]
[372708593,1752745852092,-678.7,0.00021222,2]
[372708595,1752745852101,-460.0,0.00021222,2]
[372708597,1752745852110,-460.0,0.00021222,2]
[372708598,1752745852119,-4405.08,0.00021222,2]
[372708600,1752745852129,-460.0,0.00021223,2]
[372708603,1752745852141,-1239.96,0.00021223,2]
[372708605,1752745852151,-940.09,0.00021223,2]
[372708607,1752745852160,-538.65,0.00021223,2]
[372708608,1752745852169,-721.61,0.00021223,2]
[372708610,1752745852179,-694.55,0.00021223,2]
[372708612,1752745852188,-1034.96,0.00021223,2]
[372708614,1752745852198,-601.15,0.00021223,2]
[372708616,1752745852207,-17667.63082844,0.00021223,3]
[372708618,1752745852217,-1299.305,0.00021247,2]
[372708620,1752745852226,-1500.0,0.00021249,2]
[372708622,1752745852236,-1865.0,0.00021268,2]
[372708624,1752745852246,-414.89327024,0.00021268,2]
[372708626,1752745852257,-500.0,0.00021268,2]
[372708628,1752745852266,-1693.0,0.00021268,2]
[372708629,1752745852275,-1000.0,0.0002127,2]
[372708630,1752745852285,-500.0,0.0002128,2]
[372708631,1752745852295,-500.0,0.0002128,2]
[372708632,1752745852305,-500.0,0.0002128,2]
[372708633,1752745852315,-163.56368296,0.0002128,2]
[372708634,1752745852326,-212.0,0.00021289,2]
[372708635,1752745852336,-417.010222,0.00021296,2]
[372708636,1752745852346,-212.0,0.00021301,2]
[372708637,1752745852355,-212.0,0.00021305,2]
[372708638,1752745852365,-15951.92248767,0.00021314,5]
[372708639,1752745852374,-460.0,0.00021319,2]
[372708640,1752745852383,-1652.73,0.00021319,2]
[372708641,1752745852393,-206.8,0.00021322,2]
[372708642,1752745852403,-509.47,0.00021322,2]
[372708643,1752745852413,-460.0,0.00021322,2]
[372708644,1752745852423,-482.32,0.00021322,2]
[372708645,1752745852432,-821.31,0.00021322,2]
[372708646,1752745852442,-834.08,0.00021322,2]
[372708647,1752745852452,-977.62,0.00021322,2]
[372708648,1752745852461,-803.34,0.00021322,2]
[372708649,1752745852471,-460.0,0.00021322,2]
[372708651,1752745852480,-460.0,0.00021322,2]
[372708653,1752745852490,-1751.53,0.00021322,2]
[372708655,1752745852499,-621.7,0.00021322,2]
[372708657,1752745852509,-5369.02,0.00021322,2]
[372708659,1752745852518,-1475.65,0.00021322,2]
[372708661,1752745852527,-1601.92,0.00021322,2]
[372708663,1752745852536,-460.0,0.00021322,2]
[372708665,1752745852545,-658.3,0.00021322,2]
[372708667,1752745852555,-1799.59,0.00021322,2]
[372708668,1752745852564,-1610.03,0.00021322,2]
[372708670,1752745852573,-2915.87,0.00021322,2]
[372708672,1752745852583,-460.0,0.00021322,2]
[372708674,1752745852592,-752.21,0.00021324,2]
[372708676,1752745852602,-196.0,0.0002135,2]
[372708678,1752745852611,-587.0,0.0002135,2]
[372708680,1752745852621,-212.0,0.00021377,2]
[372708682,1752745852630,-7389.38261493,0.00021382,2]
[372708685,1752745852641,-3296.49234646,0.000214,2]
[372708687,1752745852654,-560.0,0.00021408,2]
[372708688,1752745852663,-223.0315306,0.00021435,2]
[372708690,1752745852672,-160.0,0.00021471,3]
[372708692,1752745852682,-3422.99,0.00021494,2]
[372708694,1752745852693,-4758.58,0.00021495,2]
[372708696,1752745852704,-2674.7,0.00021495,2]
[372708698,1752745852713,-761.9,0.00021495,2]
[372708700,1752745852724,-3502.47,0.00021495,2]
[372708702,1752745852734,-2683.97,0.00021495,2]
[372708704,1752745852743,-460.0,0.00021495,2]
[372708706,1752745852752,-1161.67,0.00021495,2]
[372708708,1752745852761,-659.41,0.00021495,2]
[372708710,1752745852771,-759.65,0.00021496,2]
[372708712,1752745852781,-678.7,0.00021496,2]
[372708714,1752745852791,-460.0,0.00021496,2]
[372708716,1752745852800,-482.34657111,0.00021496,2]
[372708718,1752745852809,-4405.08,0.00021496,2]
[372708720,1752745852819,-460.0,0.00021497,2]
[372708722,1752745852828,-940.09,0.00021497,2]
[372708724,1752745852837,-1239.96,0.00021497,2]
[372708726,1752745852847,-538.65,0.00021497,2]
[372708728,1752745852856,-721.61,0.00021497,2]
[372708730,1752745852866,-694.55,0.00021497,2]
[372708732,1752745852875,-1034.96,0.00021497,2]
[372708734,1752745852885,-601.15,0.00021497,2]
[372708736,1752745852895,-10315.58859926,0.000215,2]
[372708738,1752745852904,-500.0,0.000215,2]
[372708740,1752745852913,-1865.0,0.00021542,2]
[372708742,1752745852923,-359.77817653,0.00021542,2]
[372708744,1752745852932,-1693.0,0.00021542,2]
[372708746,1752745852942,-1755.72206,0.00021555,2]
[372708748,1752745852951,-1755.72206,0.00021555,2]
[372708750,1752745852961,-294.087487,0.00021555,2]
[372708752,1752745852970,-294.087487,0.00021555,2]
[372708754,1752745852981,-15951.92248767,0.00021555,5]
[372708756,1752745852990,-2351.0,0.00021561,2]
[372708758,1752745853000,-3000.0,0.00021578,2]
[372708760,1752745853009,-460.0,0.00021593,2]
[372708762,1752745853019,-1652.73,0.00021593,2]
[372708774,1752745853028,-509.47,0.00021596,2]
[372708779,1752745853161,-460.0,0.00021596,2]
[372708781,1752745853171,-482.32,0.00021596,2]
[372708783,1752745853181,-821.31,0.00021596,2]
[372708785,1752745853191,-834.08,0.00021596,2]
[372708787,1752745853201,-977.62,0.00021596,2]
[372708789,1752745853212,-803.34,0.00021596,2]
[372708791,1752745853222,-460.0,0.00021596,2]
[372708793,1752745853231,-460.0,0.00021596,2]
[372708795,1752745853241,-1751.53,0.00021596,2]
[372708797,1752745853250,-621.7,0.00021596,2]
[372708799,1752745853259,-5369.02,0.00021596,2]
[372708801,1752745853268,-1475.65,0.00021596,2]
[372708803,1752745853278,-1601.92,0.00021596,2]
[372708805,1752745853287,-460.0,0.00021596,2]
[372708807,1752745853297,-658.3,0.00021596,2]
[372708809,1752745853308,-1799.59,0.00021596,2]
[372708810,1752745853317,-1610.03,0.00021596,2]
[372708812,1752745853327,-2915.87,0.00021596,2]
[372708814,1752745853337,-460.0,0.00021596,2]
[372708817,1752745853346,-151.0,0.00021597,2]
[372708819,1752745853357,-151.0,0.00021597,2]
[372708820,1752745853366,-465.179616,0.00021597,2]
[372708822,1752745853376,-465.179616,0.00021597,2]
[372708824,1752745853386,-752.21,0.00021598,2]
[372708826,1752745853395,-2000.0,0.00021617,2]
[372708828,1752745853405,-212.0,0.00021653,2]
[372708830,1752745853417,-2000.0,0.0002168,2]
[372708832,1752745853426,-1789.48901587,0.0002168,2]
[372708834,1752745853435,-2000.0,0.0002168,2]
[372708836,1752745853445,-212.0,0.00021686,2]
[372708838,1752745853454,-299.4,0.00021726,4]
[372708840,1752745853464,-417.010222,0.00021731,3]
[372708842,1752745853473,-153.0,0.00021732,2]
[372708844,1752745853482,-160.0,0.00021749,4]
[372708846,1752745853491,-3422.99,0.00021768,2]
[372708848,1752745853502,-4758.58,0.00021769,2]
[372708849,1752745853511,-2674.7,0.00021769,2]
[372708850,1752745853521,-761.9,0.00021769,2]
[372708851,1752745853531,-3502.47,0.00021769,2]
[372708852,1752745853541,-2683.97,0.00021769,2]
[372708853,1752745853551,-460.0,0.00021769,2]
[372708854,1752745853560,-1161.67,0.00021769,2]
[372708855,1752745853571,-659.41,0.00021769,2]
[372708856,1752745853580,-759.65,0.0002177,2]
[372708857,1752745853590,-678.7,0.0002177,2]
[372708859,1752745853600,-3876.20469946,0.0002177,2]
[372708861,1752745853610,-460.0,0.0002177,2]
[372708863,1752745853619,-4405.08,0.0002177,2]
[372708865,1752745853629,-460.0,0.00021771,2]
[372708867,1752745853638,-940.09,0.00021771,2]
[372708869,1752745853651,-1239.96,0.00021771,2]
[372708871,1752745853661,-538.65,0.00021771,2]
[372708873,1752745853670,-721.61,0.00021771,2]
[372708875,1752745853680,-694.55,0.00021771,2]
[372708877,1752745853692,-1034.96,0.00021771,2]
[372708879,1752745853702,-601.15,0.00021771,2]
[372708881,1752745853712,-151.0,0.00021771,2]
[372708883,1752745853722,-212.0,0.00021774,2]
[372708885,1752745853731,-212.0,0.0002178,2]
[372708887,1752745853741,-162.95721284,0.00021781,2]
[372708889,1752745853750,-15951.92248767,0.00021797,6]
[372708891,1752745853759,-2000.0,0.00021797,2]
[372708893,1752745853769,-151.0,0.00021797,2]
[372708895,1752745853779,-500.0,0.000218,2]
[372708897,1752745853789,-1865.0,0.00021816,2]
[372708899,1752745853799,-1693.0,0.00021816,2]
[372708901,1752745853809,-690.87640862,0.00021817,2]
[372708903,1752745853818,-1000.0,0.00021828,2]
[372708905,1752745853828,-1000.0,0.00021828,2]
[372708907,1752745853838,-1000.0,0.00021828,2]
[372708909,1752745853847,-212.0,0.00021844,2]
[372708911,1752745853857,-1652.73,0.00021867,2]
[372708913,1752745853866,-509.47,0.0002187,2]
[372708915,1752745853876,-460.0,0.0002187,2]
[372708917,1752745853886,-482.32,0.0002187,2]
[372708919,1752745853896,-821.31,0.0002187,2]
[372708921,1752745853906,-834.08,0.0002187,2]
[372708923,1752745853917,-977.62,0.0002187,2]
[372708925,1752745853926,-803.34,0.0002187,2]
[372708927,1752745853936,-460.0,0.0002187,2]
[372708929,1752745853946,-460.0,0.0002187,2]
[372708931,1752745853955,-1751.53,0.0002187,2]
[372708933,1752745853965,-621.7,0.0002187,2]
[372708935,1752745853974,-5369.02,0.0002187,2]
[372708937,1752745853984,-1475.65,0.0002187,2]
[372708940,1752745853994,-1601.92,0.0002187,2]
[372708942,1752745854003,-460.0,0.0002187,2]
[372708944,1752745854012,-658.3,0.0002187,2]
[372708946,1752745854022,-1799.59,0.0002187,2]
[372708948,1752745854031,-1610.03,0.0002187,2]
[372708950,1752745854041,-2915.87,0.0002187,2]
[372708952,1752745854050,-752.21,0.00021872,2]
[372708954,1752745854060,-3296.49234637,0.00021892,2]
[372708956,1752745854069,-7870.46878735,0.00021916,2]
[372708973,1752745854226,-278.21992796,0.00021916,2]
[372708975,1752745854238,-1222.39634548,0.00021916,2]
[372708977,1752745854249,-1769.37727418,0.00021916,2]
[372708990,1752745854368,4096.930564,0.00017211,2]
[372708996,1752745854417,-460.0,0.0002187,2]
[372708998,1752745854426,-2575.85897167,0.00021916,2]
[372709001,1752745854443,-30633.53741167,0.00021916,2]
[372709004,1752745854457,-1735.15,0.00021916,2]
[372709037,1752745854771,-65727.31127223,0.00021916,2]
[372709076,1752745855093,-176.78292131,0.00017931,2]
[372709078,1752745855103,-505.16367341,0.00017931,2]
[372709080,1752745855112,-500.0,0.00017931,2]
[372709082,1752745855121,-500.0,0.00017931,2]
[372709084,1752745855130,-500.0,0.00017931,2]
[372709086,1752745855140,-500.0,0.00017931,2]
[372709088,1752745855151,-500.0,0.00017931,2]
[372709090,1752745855160,-170.48195333,0.00017931,2]
[372709092,1752745855170,-500.0,0.00017931,2]
[372709094,1752745855179,-500.0,0.00017931,2]
[372709096,1752745855188,-500.0,0.00017931,2]